[Event "*** Titled Tuesday Blitz"]
[Site "Chess.com"]
[Date "2018.08.07"]
[Round "8"]
[White "penguingm1"]
[Black "oskariot"]
[Result "0-1"]
[WhiteElo "2827"]
[BlackElo "2489"]
[TimeControl "180+2"]
[EndTime "14:49:55 PDT"]
[Termination "oskariot won by checkmate"]

1. d4 {[%clk 0:03:01.9]} 1... g6 {[%clk 0:02:52.1]} 2. c4 {[%clk 0:02:59.4]}
2... Bg7 {[%clk 0:02:53.1]} 3. Nc3 {[%clk 0:03:00.9]} 3... c5 {[%clk 0:02:54.6]}
4. d5 {[%clk 0:03:02.1]} 4... Bxc3+ {[%clk 0:02:55.6]} 5. bxc3 {[%clk 0:03:04]}
5... f5 {[%clk 0:02:57.3]} 6. h4 {[%clk 0:03:05.5]} 6... Nf6 {[%clk 0:02:57.3]}
7. h5 {[%clk 0:03:06.2]} 7... Nxh5 {[%clk 0:02:58.3]} 8. Rxh5 {[%clk 0:03:07]}
8... gxh5 {[%clk 0:03:00.2]} 9. e4 {[%clk 0:03:08.2]} 9... d6 {[%clk 0:02:53.9]}
10. Qxh5+ {[%clk 0:03:08.5]} 10... Kd7 {[%clk 0:02:53.1]} 11. Qxf5+ {[%clk
0:03:01]} 11... Kc7 {[%clk 0:02:54.3]} 12. Qh5 {[%clk 0:03:01.4]} 12... Nd7
{[%clk 0:02:49.1]} 13. Nf3 {[%clk 0:03:02]} 13... Qe8 {[%clk 0:02:33.8]} 14. Qh4
{[%clk 0:03:00.4]} 14... Qg6 {[%clk 0:02:28.5]} 15. Bf4 {[%clk 0:02:40.5]} 15...
Qxe4+ {[%clk 0:02:14.1]} 16. Kd2 {[%clk 0:02:40.5]} 16... Qg6 {[%clk 0:01:23.5]}
17. Qxe7 {[%clk 0:02:29.7]} 17... Qf6 {[%clk 0:01:21.8]} 18. Qe3 {[%clk
0:02:20.4]} 18... b6 {[%clk 0:00:43.7]} 19. Ng5 {[%clk 0:02:13.3]} 19... Ne5
{[%clk 0:00:37.8]} 20. Ne4 {[%clk 0:02:11.2]} 20... Qg7 {[%clk 0:00:27.4]} 21.
Re1 {[%clk 0:01:53.1]} 21... Re8 {[%clk 0:00:26.1]} 22. Kc1 {[%clk 0:01:12.5]}
22... Bf5 {[%clk 0:00:24]} 23. Kd2 {[%clk 0:01:01.4]} 23... Nxc4+ {[%clk
0:00:19.8]} 24. Bxc4 {[%clk 0:00:58.9]} 24... Rxe4 {[%clk 0:00:21]} 25. Qxe4
{[%clk 0:00:50.3]} 25... Bxe4 {[%clk 0:00:21.6]} 26. Rxe4 {[%clk 0:00:52.2]}
26... Qf7 {[%clk 0:00:17.6]} 27. Bg3 {[%clk 0:00:50.4]} 27... Re8 {[%clk
0:00:17.1]} 28. Rf4 {[%clk 0:00:51.7]} 28... Qg7 {[%clk 0:00:16.3]} 29. Bd3
{[%clk 0:00:49.6]} 29... Re5 {[%clk 0:00:15.3]} 30. c4 {[%clk 0:00:49.8]} 30...
Re7 {[%clk 0:00:16.3]} 31. Kc2 {[%clk 0:00:40]} 31... Rf7 {[%clk 0:00:15.5]} 32.
Re4 {[%clk 0:00:40.1]} 32... Re7 {[%clk 0:00:16.7]} 33. Rh4 {[%clk 0:00:40.1]}
33... a6 {[%clk 0:00:12.3]} 34. a4 {[%clk 0:00:31.7]} 34... Qa1 {[%clk
0:00:09.8]} 35. Kb3 {[%clk 0:00:31.6]} 35... Qd1+ {[%clk 0:00:10.4]} 36. Bc2
{[%clk 0:00:32.6]} 36... Qd2 {[%clk 0:00:10.7]} 37. Rh6 {[%clk 0:00:27.4]} 37...
Re2 {[%clk 0:00:11.3]} 38. Rxh7+ {[%clk 0:00:21.6]} 38... Kd8 {[%clk 0:00:05.8]}
39. Bh4+ {[%clk 0:00:12.2]} 39... Ke8 {[%clk 0:00:07.1]} 40. Bg6+ {[%clk
0:00:07.7]} 40... Kf8 {[%clk 0:00:08.3]} 41. Bf6 {[%clk 0:00:06.6]} 41... Qa2+
{[%clk 0:00:09.1]} 42. Kc3 {[%clk 0:00:07.8]} 42... Qa3# {[%clk 0:00:10.4]} 0-1

[Event "*** Titled Tuesday Blitz"]
[Site "Chess.com"]
[Date "2018.08.07"]
[Round "8"]
[White "rikyshi"]
[Black "Karina_Oparina"]
[Result "0-1"]
[WhiteElo "2186"]
[BlackElo "2145"]
[TimeControl "180+2"]
[EndTime "14:50:06 PDT"]
[Termination "Karina_Oparina won by resignation"]

1. d4 {[%clk 0:03:01.3]} 1... Nf6 {[%clk 0:03:00.3]} 2. c4 {[%clk 0:03:01.4]}
2... e6 {[%clk 0:03:01.2]} 3. Nc3 {[%clk 0:03:01.6]} 3... Bb4 {[%clk 0:03:01.1]}
4. Qc2 {[%clk 0:03:02.3]} 4... c5 {[%clk 0:03:02]} 5. dxc5 {[%clk 0:03:02.9]}
5... Bxc5 {[%clk 0:03:02.1]} 6. Nf3 {[%clk 0:02:46.1]} 6... Qc7 {[%clk
0:03:01.3]} 7. g3 {[%clk 0:02:44.5]} 7... a6 {[%clk 0:02:49.3]} 8. Bg2 {[%clk
0:02:44.7]} 8... Be7 {[%clk 0:02:49]} 9. b3 {[%clk 0:02:45]} 9... d5 {[%clk
0:02:30.6]} 10. cxd5 {[%clk 0:02:37.2]} 10... Nxd5 {[%clk 0:02:29.1]} 11. Bd2
{[%clk 0:02:29.8]} 11... O-O {[%clk 0:02:14.5]} 12. Rc1 {[%clk 0:02:15.7]} 12...
Nxc3 {[%clk 0:02:04]} 13. Qxc3 {[%clk 0:01:52.8]} 13... Qxc3 {[%clk 0:01:40.8]}
14. Bxc3 {[%clk 0:01:47.9]} 14... Nc6 {[%clk 0:01:39.1]} 15. e3 {[%clk
0:01:39.1]} 15... Nb4 {[%clk 0:01:24.7]} 16. Bxb4 {[%clk 0:01:19.2]} 16... Bxb4+
{[%clk 0:01:21.9]} 17. Ke2 {[%clk 0:01:21.1]} 17... Bd7 {[%clk 0:01:18.3]} 18.
Nd4 {[%clk 0:00:55.2]} 18... Bc8 {[%clk 0:00:52.9]} 19. f4 {[%clk 0:00:52.6]}
19... f6 {[%clk 0:00:45.9]} 20. Rc4 {[%clk 0:00:27.2]} 20... Bd6 {[%clk
0:00:38.7]} 21. Rd1 {[%clk 0:00:27]} 21... Be7 {[%clk 0:00:21.2]} 22. Kf2 {[%clk
0:00:22.3]} 22... e5 {[%clk 0:00:20.9]} 23. Nf3 {[%clk 0:00:20.3]} 23... exf4
{[%clk 0:00:18.2]} 24. gxf4 {[%clk 0:00:22.2]} 24... Rd8 {[%clk 0:00:16.8]} 25.
Rxd8+ {[%clk 0:00:16.9]} 25... Bxd8 {[%clk 0:00:16.7]} 26. Nd4 {[%clk
0:00:18.8]} 26... Rb8 {[%clk 0:00:15.6]} 27. e4 {[%clk 0:00:13.3]} 27... Bd7
{[%clk 0:00:16.2]} 28. e5 {[%clk 0:00:13.8]} 28... fxe5 {[%clk 0:00:16.3]} 29.
fxe5 {[%clk 0:00:15.7]} 29... Bb6 {[%clk 0:00:13.5]} 30. Bd5+ {[%clk 0:00:12.5]}
30... Kf8 {[%clk 0:00:13.3]} 31. e6 {[%clk 0:00:14]} 31... Bb5 {[%clk
0:00:09.5]} 32. Rb4 {[%clk 0:00:12.6]} 32... Bc5 {[%clk 0:00:09.6]} 33. a4
{[%clk 0:00:03.5]} 33... Bxb4 {[%clk 0:00:09.8]} 34. axb5 {[%clk 0:00:04.4]}
34... Bc5 {[%clk 0:00:11]} 35. Ke3 {[%clk 0:00:05.4]} 35... Bxd4+ {[%clk
0:00:12.1]} 36. Kxd4 {[%clk 0:00:06.4]} 36... axb5 {[%clk 0:00:13.5]} 37. Kc5
{[%clk 0:00:07.9]} 37... Ke7 {[%clk 0:00:14.8]} 38. Kxb5 {[%clk 0:00:08.9]}
38... Kd6 {[%clk 0:00:15]} 39. Bc4 {[%clk 0:00:05.6]} 39... Rf8 {[%clk
0:00:15.2]} 40. Kb6 {[%clk 0:00:05.7]} 40... Rf2 {[%clk 0:00:15.7]} 41. Kxb7
{[%clk 0:00:04.3]} 41... Rxh2 {[%clk 0:00:16.2]} 42. Kc8 {[%clk 0:00:05.7]}
42... Ke7 {[%clk 0:00:16.3]} 43. Kc7 {[%clk 0:00:05.6]} 43... Rb2 {[%clk
0:00:16.4]} 44. Kc6 {[%clk 0:00:05.2]} 44... h5 {[%clk 0:00:15.7]} 45. Kd5
{[%clk 0:00:03.5]} 45... g5 {[%clk 0:00:14.8]} 0-1

[Event "*** Titled Tuesday Blitz"]
[Site "Chess.com"]
[Date "2018.08.07"]
[Round "8"]
[White "Parhamov"]
[Black "Angry_Twin"]
[Result "0-1"]
[WhiteElo "2751"]
[BlackElo "2649"]
[TimeControl "180+2"]
[EndTime "14:50:14 PDT"]
[Termination "Angry_Twin won by resignation"]

1. Nf3 {[%clk 0:02:59.3]} 1... Nf6 {[%clk 0:03:00.9]} 2. c4 {[%clk 0:03:00.3]}
2... g6 {[%clk 0:03:02]} 3. Nc3 {[%clk 0:03:01.7]} 3... d5 {[%clk 0:03:03.6]} 4.
cxd5 {[%clk 0:02:57]} 4... Nxd5 {[%clk 0:03:05.5]} 5. Qb3 {[%clk 0:02:56.7]}
5... Nb6 {[%clk 0:03:06.4]} 6. d4 {[%clk 0:02:57.7]} 6... Bg7 {[%clk 0:03:07]}
7. Bf4 {[%clk 0:02:57.5]} 7... Be6 {[%clk 0:03:05]} 8. Qa3 {[%clk 0:02:58.2]}
8... O-O {[%clk 0:03:05.2]} 9. e3 {[%clk 0:02:52.2]} 9... N8d7 {[%clk
0:03:05.5]} 10. Rd1 {[%clk 0:02:52]} 10... c6 {[%clk 0:03:03.1]} 11. Be2 {[%clk
0:02:50.1]} 11... Nc4 {[%clk 0:03:02.5]} 12. Qb4 {[%clk 0:02:31.3]} 12... b5
{[%clk 0:03:03.3]} 13. Ne4 {[%clk 0:02:31]} 13... Bd5 {[%clk 0:02:57.7]} 14. Ng3
{[%clk 0:02:28.5]} 14... a5 {[%clk 0:01:58.3]} 15. Qc3 {[%clk 0:02:29]} 15...
Nf6 {[%clk 0:01:49.6]} 16. b3 {[%clk 0:02:28.1]} 16... Nd6 {[%clk 0:01:50.6]}
17. O-O {[%clk 0:02:28.4]} 17... a4 {[%clk 0:01:49.8]} 18. Nd2 {[%clk
0:02:27.1]} 18... axb3 {[%clk 0:01:49]} 19. axb3 {[%clk 0:02:27.9]} 19... Qa5
{[%clk 0:01:47.8]} 20. Qd3 {[%clk 0:02:28.2]} 20... Be6 {[%clk 0:01:24.6]} 21.
e4 {[%clk 0:02:14.9]} 21... Nd7 {[%clk 0:00:58.2]} 22. Bg5 {[%clk 0:01:55.9]}
22... Rfe8 {[%clk 0:00:58.5]} 23. f4 {[%clk 0:01:49]} 23... Qb4 {[%clk
0:00:41.2]} 24. e5 {[%clk 0:01:39]} 24... Nf5 {[%clk 0:00:41]} 25. Nxf5 {[%clk
0:01:40]} 25... Bxf5 {[%clk 0:00:42.9]} 26. Qe3 {[%clk 0:01:41.2]} 26... Nb6
{[%clk 0:00:42.1]} 27. g4 {[%clk 0:01:39.4]} 27... Nd5 {[%clk 0:00:43]} 28. Qf2
{[%clk 0:01:31.9]} 28... Bc2 {[%clk 0:00:44.1]} 29. f5 {[%clk 0:01:33.2]} 29...
f6 {[%clk 0:00:35.1]} 30. Rc1 {[%clk 0:01:13.1]} 30... Ra2 {[%clk 0:00:35.4]}
31. Bh4 {[%clk 0:00:12.6]} 31... Qxd2 {[%clk 0:00:34.3]} 32. Bf3 {[%clk
0:00:11.4]} 32... Qxf2+ {[%clk 0:00:30.4]} 33. Rxf2 {[%clk 0:00:12.1]} 33...
Bxb3 {[%clk 0:00:31.7]} 34. Rxc6 {[%clk 0:00:13.1]} 34... fxe5 {[%clk
0:00:26.4]} 35. Rc5 {[%clk 0:00:13.5]} 35... e4 {[%clk 0:00:25.7]} 36. Bxe4
{[%clk 0:00:14.1]} 36... Bxd4 {[%clk 0:00:26.1]} 37. Rxd5 {[%clk 0:00:09.4]}
37... Bxf2+ {[%clk 0:00:16.9]} 38. Bxf2 {[%clk 0:00:10.4]} 38... Rxf2 {[%clk
0:00:18.3]} 39. Rxb5 {[%clk 0:00:10.3]} 39... Rf4 {[%clk 0:00:18.1]} 40. Bc6
{[%clk 0:00:11.7]} 40... Rxg4+ {[%clk 0:00:19.1]} 41. Kf2 {[%clk 0:00:12.1]}
41... Rf8 {[%clk 0:00:20.2]} 42. Rxb3 {[%clk 0:00:12.2]} 42... Rxf5+ {[%clk
0:00:21.6]} 43. Ke3 {[%clk 0:00:13.7]} 43... Kg7 {[%clk 0:00:22.7]} 44. Bd7
{[%clk 0:00:14.6]} 44... Re5+ {[%clk 0:00:24]} 45. Kf3 {[%clk 0:00:16.1]} 45...
Rh4 {[%clk 0:00:25.5]} 46. Kg3 {[%clk 0:00:17.6]} 46... Rhe4 {[%clk 0:00:25.9]}
47. Kf3 {[%clk 0:00:16.6]} 47... g5 {[%clk 0:00:27.3]} 48. h3 {[%clk 0:00:17.8]}
48... Rf4+ {[%clk 0:00:28.7]} 49. Kg3 {[%clk 0:00:18.2]} 49... h5 {[%clk
0:00:30.6]} 50. Bc6 {[%clk 0:00:18.2]} 50... h4+ {[%clk 0:00:31.7]} 51. Kg2
{[%clk 0:00:19.6]} 51... Re2+ {[%clk 0:00:32.7]} 52. Kg1 {[%clk 0:00:20.9]}
52... Rc4 {[%clk 0:00:32.9]} 53. Rb1 {[%clk 0:00:19.7]} 53... Rxc6 {[%clk
0:00:33.1]} 0-1

[Event "*** Titled Tuesday Blitz"]
[Site "Chess.com"]
[Date "2018.08.07"]
[Round "8"]
[White "Titus369"]
[Black "Korchmar_Vasiliy"]
[Result "0-1"]
[WhiteElo "2318"]
[BlackElo "2627"]
[TimeControl "180+2"]
[EndTime "14:50:32 PDT"]
[Termination "Korchmar_Vasiliy won by resignation"]

1. e4 {[%clk 0:03:01.9]} 1... c5 {[%clk 0:03:00.6]} 2. Nf3 {[%clk 0:03:02.4]}
2... d6 {[%clk 0:03:02]} 3. d4 {[%clk 0:03:03]} 3... cxd4 {[%clk 0:03:03.5]} 4.
Nxd4 {[%clk 0:03:04.9]} 4... Nf6 {[%clk 0:03:04.8]} 5. Nc3 {[%clk 0:03:02.8]}
5... Nc6 {[%clk 0:03:06.1]} 6. h3 {[%clk 0:02:57.7]} 6... e5 {[%clk 0:02:53.7]}
7. Nde2 {[%clk 0:02:55.9]} 7... Be6 {[%clk 0:02:50.2]} 8. g4 {[%clk 0:02:48.8]}
8... d5 {[%clk 0:02:48.8]} 9. exd5 {[%clk 0:02:46.2]} 9... Nxd5 {[%clk
0:02:50.7]} 10. Bg2 {[%clk 0:02:46.6]} 10... Nxc3 {[%clk 0:02:40.2]} 11. Nxc3
{[%clk 0:02:34.6]} 11... Qxd1+ {[%clk 0:02:40.7]} 12. Nxd1 {[%clk 0:02:34]}
12... O-O-O {[%clk 0:02:37.1]} 13. O-O {[%clk 0:02:30.6]} 13... Nd4 {[%clk
0:02:34.3]} 14. Ne3 {[%clk 0:02:26.5]} 14... h5 {[%clk 0:02:29.1]} 15. g5 {[%clk
0:02:19]} 15... h4 {[%clk 0:02:29.4]} 16. c3 {[%clk 0:02:10]} 16... Ne2+ {[%clk
0:02:29.3]} 17. Kh2 {[%clk 0:02:05.5]} 17... Be7 {[%clk 0:02:27.5]} 18. Ng4
{[%clk 0:01:57.5]} 18... Nxc1 {[%clk 0:02:22.6]} 19. Raxc1 {[%clk 0:01:57.1]}
19... Bxg5 {[%clk 0:02:24.2]} 20. Rcd1 {[%clk 0:01:58.6]} 20... f6 {[%clk
0:02:15.6]} 21. Ne3 {[%clk 0:01:52.7]} 21... b6 {[%clk 0:02:01.5]} 22. Nd5
{[%clk 0:01:52.1]} 22... Rd7 {[%clk 0:01:59.1]} 23. c4 {[%clk 0:01:46.1]} 23...
Rhd8 {[%clk 0:01:59.8]} 24. b3 {[%clk 0:01:43.9]} 24... Rd6 {[%clk 0:01:47.4]}
25. Rd3 {[%clk 0:01:37.5]} 25... R8d7 {[%clk 0:01:41.3]} 26. Rfd1 {[%clk
0:01:35.1]} 26... f5 {[%clk 0:01:34.2]} 27. f3 {[%clk 0:01:08.4]} 27... Bxd5
{[%clk 0:00:48.6]} 28. Rxd5 {[%clk 0:01:07.8]} 28... Rxd5 {[%clk 0:00:49.9]} 29.
Rxd5 {[%clk 0:01:09.7]} 29... Rxd5 {[%clk 0:00:51.1]} 30. cxd5 {[%clk
0:01:09.3]} 30... Kd7 {[%clk 0:00:53]} 31. Bf1 {[%clk 0:01:10.4]} 31... Kd6
{[%clk 0:00:46.5]} 32. Bc4 {[%clk 0:01:10.5]} 32... Kc5 {[%clk 0:00:44.9]} 33.
a4 {[%clk 0:01:06.1]} 33... Be7 {[%clk 0:00:33.3]} 34. Kg2 {[%clk 0:01:06.7]}
34... Kd4 {[%clk 0:00:34]} 35. Kf2 {[%clk 0:01:05.5]} 35... Bd6 {[%clk
0:00:26.2]} 36. Ke2 {[%clk 0:01:05.9]} 36... g5 {[%clk 0:00:25.8]} 37. Bb5
{[%clk 0:00:53.3]} 37... e4 {[%clk 0:00:20.5]} 38. Bd7 {[%clk 0:00:43.7]} 38...
f4 {[%clk 0:00:11.4]} 39. Be6 {[%clk 0:00:07.2]} 39... e3 {[%clk 0:00:09.8]} 40.
Bf7 {[%clk 0:00:05.8]} 40... Kc3 {[%clk 0:00:10.5]} 41. Be6 {[%clk 0:00:05.5]}
41... Kxb3 {[%clk 0:00:11.1]} 42. Bd7 {[%clk 0:00:06.3]} 42... Kc4 {[%clk
0:00:11.7]} 43. Bc6 {[%clk 0:00:07.6]} 43... Kb4 {[%clk 0:00:10.9]} 44. Bb5
{[%clk 0:00:08.2]} 44... a6 {[%clk 0:00:10.8]} 45. Bc6 {[%clk 0:00:09.2]} 45...
b5 {[%clk 0:00:11.3]} 46. axb5 {[%clk 0:00:11.1]} 46... axb5 {[%clk 0:00:13.2]}
47. Kd3 {[%clk 0:00:12.7]} 47... Kc5 {[%clk 0:00:09.1]} 48. Bb7 {[%clk
0:00:13.1]} 48... Be5 {[%clk 0:00:09.8]} 49. Kc2 {[%clk 0:00:12.9]} 49... b4
{[%clk 0:00:09.1]} 50. Ba6 {[%clk 0:00:07.2]} 50... g4 {[%clk 0:00:07.1]} 51.
fxg4 {[%clk 0:00:02.6]} 51... f3 {[%clk 0:00:07.3]} 52. Kd3 {[%clk 0:00:02.9]}
52... e2 {[%clk 0:00:08.2]} 53. Kd2 {[%clk 0:00:04.1]} 53... Bc3+ {[%clk
0:00:09.2]} 0-1

[Event "*** Titled Tuesday Blitz"]
[Site "Chess.com"]
[Date "2018.08.07"]
[Round "8"]
[White "Vuk2000"]
[Black "jk13"]
[Result "1/2-1/2"]
[WhiteElo "2674"]
[BlackElo "2544"]
[TimeControl "180+2"]
[EndTime "14:50:48 PDT"]
[Termination "Game drawn by repetition"]

1. d4 {[%clk 0:03:01.9]} 1... e6 {[%clk 0:03:00.8]} 2. Nf3 {[%clk 0:03:02.2]}
2... Nf6 {[%clk 0:03:02]} 3. Bg5 {[%clk 0:03:02.4]} 3... h6 {[%clk 0:03:02.7]}
4. Bxf6 {[%clk 0:03:02]} 4... Qxf6 {[%clk 0:03:03.3]} 5. e4 {[%clk 0:03:03.6]}
5... d6 {[%clk 0:03:03.8]} 6. Nc3 {[%clk 0:03:02.9]} 6... c6 {[%clk 0:03:03.2]}
7. Qd2 {[%clk 0:03:00.8]} 7... g6 {[%clk 0:03:04.2]} 8. O-O-O {[%clk 0:02:59.4]}
8... Bg7 {[%clk 0:03:05.1]} 9. Ng1 {[%clk 0:02:52.7]} 9... d5 {[%clk 0:02:53.8]}
10. f4 {[%clk 0:02:48.4]} 10... dxe4 {[%clk 0:02:52.4]} 11. Nxe4 {[%clk
0:02:49]} 11... Qe7 {[%clk 0:02:54]} 12. h4 {[%clk 0:02:44.3]} 12... h5 {[%clk
0:02:51.1]} 13. Nf3 {[%clk 0:02:44.3]} 13... b6 {[%clk 0:02:46.3]} 14. Ne5
{[%clk 0:02:31]} 14... Bb7 {[%clk 0:02:47.6]} 15. Ng5 {[%clk 0:02:30.4]} 15...
Rf8 {[%clk 0:02:38.6]} 16. Re1 {[%clk 0:02:13.3]} 16... Bxe5 {[%clk 0:01:47.1]}
17. dxe5 {[%clk 0:02:01.9]} 17... Nd7 {[%clk 0:01:49]} 18. Ne4 {[%clk
0:02:02.9]} 18... O-O-O {[%clk 0:01:49.6]} 19. Nd6+ {[%clk 0:02:04.1]} 19... Kb8
{[%clk 0:01:51.1]} 20. Bc4 {[%clk 0:01:38]} 20... Nf6 {[%clk 0:01:48.7]} 21. Rd1
{[%clk 0:01:17.9]} 21... Ne4 {[%clk 0:01:32]} 22. Qd4 {[%clk 0:01:12]} 22... c5
{[%clk 0:01:26.1]} 23. Qe3 {[%clk 0:01:11.9]} 23... Nxd6 {[%clk 0:01:16.5]} 24.
exd6 {[%clk 0:01:11.5]} 24... Rxd6 {[%clk 0:01:18.4]} 25. Qe5 {[%clk 0:01:10.1]}
25... Rd8 {[%clk 0:01:19.4]} 26. Rxd6 {[%clk 0:00:44.1]} 26... Qxd6 {[%clk
0:01:13.5]} 27. Rd1 {[%clk 0:00:40.2]} 27... Qxe5 {[%clk 0:01:14.6]} 28. fxe5
{[%clk 0:00:38.7]} 28... Rxd1+ {[%clk 0:01:13.8]} 29. Kxd1 {[%clk 0:00:39.7]}
29... Bxg2 {[%clk 0:01:14.7]} 30. Bb5 {[%clk 0:00:40.5]} 30... Be4 {[%clk
0:01:02.9]} 31. Ke2 {[%clk 0:00:26.1]} 31... Kc7 {[%clk 0:01:01.8]} 32. c3
{[%clk 0:00:16.1]} 32... Kd8 {[%clk 0:01:01.4]} 33. Ke3 {[%clk 0:00:17]} 33...
Bd5 {[%clk 0:00:52.3]} 34. c4 {[%clk 0:00:17.9]} 34... Bb7 {[%clk 0:00:52.5]}
35. Kf4 {[%clk 0:00:18.7]} 35... Ke7 {[%clk 0:00:52.6]} 36. Kg5 {[%clk 0:00:19]}
36... Be4 {[%clk 0:00:50.1]} 37. Ba6 {[%clk 0:00:17.1]} 37... Bd3 {[%clk
0:00:49.9]} 38. Bb5 {[%clk 0:00:17.5]} 38... Be2 {[%clk 0:00:48.3]} 39. Ba6
{[%clk 0:00:18.4]} 39... Bf3 {[%clk 0:00:47.9]} 40. Bb5 {[%clk 0:00:18.3]} 40...
Bb7 {[%clk 0:00:48.6]} 41. a3 {[%clk 0:00:15.7]} 41... Ba8 {[%clk 0:00:49.2]}
42. Ba4 {[%clk 0:00:15.3]} 42... a5 {[%clk 0:00:44.5]} 43. Bc2 {[%clk
0:00:14.6]} 43... Bc6 {[%clk 0:00:45.3]} 44. Bd3 {[%clk 0:00:11.9]} 44... Ba4
{[%clk 0:00:45.3]} 45. Be2 {[%clk 0:00:12.5]} 45... Bc2 {[%clk 0:00:45.7]} 46.
Bf1 {[%clk 0:00:13.6]} 46... Be4 {[%clk 0:00:46.7]} 47. Be2 {[%clk 0:00:14.7]}
47... Bc6 {[%clk 0:00:46.4]} 48. Bd3 {[%clk 0:00:15.4]} 48... Bd7 {[%clk
0:00:47.2]} 49. Be2 {[%clk 0:00:16.6]} 49... Ba4 {[%clk 0:00:45.5]} 50. Bd3
{[%clk 0:00:17.5]} 50... Bb3 {[%clk 0:00:46.6]} 51. Be2 {[%clk 0:00:18.4]} 51...
Bc2 {[%clk 0:00:47.7]} 52. Bf1 {[%clk 0:00:19.6]} 52... Bf5 {[%clk 0:00:44.2]}
53. Be2 {[%clk 0:00:20.6]} 53... f6+ {[%clk 0:00:38.3]} 54. exf6+ {[%clk
0:00:21]} 54... Kf7 {[%clk 0:00:40.2]} 55. Bf3 {[%clk 0:00:16.2]} 55... Bd3
{[%clk 0:00:37.3]} 56. Bc6 {[%clk 0:00:17.3]} 56... Bc2 {[%clk 0:00:31.2]} 57.
Bf3 {[%clk 0:00:15.3]} 57... Bd3 {[%clk 0:00:26.2]} 58. Bc6 {[%clk 0:00:15.8]}
58... Bb1 {[%clk 0:00:24.5]} 59. Bf3 {[%clk 0:00:16.3]} 59... Bc2 {[%clk
0:00:25.4]} 60. Bg2 {[%clk 0:00:16.2]} 60... Bd3 {[%clk 0:00:21.5]} 61. Bc6
{[%clk 0:00:16.9]} 1/2-1/2

[Event "*** Titled Tuesday Blitz"]
[Site "Chess.com"]
[Date "2018.08.07"]
[Round "8"]
[White "2Tilted"]
[Black "ruvat"]
[Result "0-1"]
[WhiteElo "2325"]
[BlackElo "2279"]
[TimeControl "180+2"]
[EndTime "14:51:00 PDT"]
[Termination "ruvat won by resignation"]

1. d4 {[%clk 0:03:01.9]} 1... d6 {[%clk 0:03:01.6]} 2. Nf3 {[%clk 0:03:01.7]}
2... g6 {[%clk 0:03:02]} 3. c4 {[%clk 0:03:02.2]} 3... Bg7 {[%clk 0:03:02.8]} 4.
Nc3 {[%clk 0:03:02.8]} 4... Bg4 {[%clk 0:03:03.4]} 5. e4 {[%clk 0:03:00.9]} 5...
Nc6 {[%clk 0:03:03.4]} 6. Be3 {[%clk 0:03:01]} 6... Bxf3 {[%clk 0:03:03.1]} 7.
gxf3 {[%clk 0:03:02.9]} 7... e5 {[%clk 0:03:03.6]} 8. d5 {[%clk 0:03:03.7]} 8...
Nd4 {[%clk 0:03:04.7]} 9. Be2 {[%clk 0:02:59.9]} 9... c5 {[%clk 0:03:01]} 10.
dxc6 {[%clk 0:03:00.1]} 10... bxc6 {[%clk 0:03:02.1]} 11. f4 {[%clk 0:02:59.9]}
11... Qh4 {[%clk 0:02:55.3]} 12. fxe5 {[%clk 0:02:58]} 12... dxe5 {[%clk
0:02:55.3]} 13. Qa4 {[%clk 0:02:51.9]} 13... Ne7 {[%clk 0:02:53.3]} 14. Rd1
{[%clk 0:02:38.9]} 14... O-O {[%clk 0:02:51.8]} 15. Rd2 {[%clk 0:02:21.3]} 15...
Rfd8 {[%clk 0:02:48.4]} 16. Qd1 {[%clk 0:02:20.6]} 16... Bh6 {[%clk 0:02:38.3]}
17. Bxh6 {[%clk 0:02:19.1]} 17... Qxh6 {[%clk 0:02:38]} 18. Rd3 {[%clk
0:02:09.4]} 18... Qh4 {[%clk 0:02:28.2]} 19. Qd2 {[%clk 0:02:03.6]} 19... Rab8
{[%clk 0:02:13.3]} 20. b3 {[%clk 0:02:03.9]} 20... Kg7 {[%clk 0:02:10.5]} 21.
Nb1 {[%clk 0:01:57.2]} 21... Ng8 {[%clk 0:02:03.3]} 22. Nc3 {[%clk 0:01:51.6]}
22... Nf6 {[%clk 0:02:02.9]} 23. Re3 {[%clk 0:01:15.2]} 23... Nxb3 {[%clk
0:01:31.8]} 24. Qxd8 {[%clk 0:01:01.3]} 24... Rxd8 {[%clk 0:01:31.2]} 25. axb3
{[%clk 0:01:02.3]} 25... Rd4 {[%clk 0:01:23]} 26. O-O {[%clk 0:01:01.4]} 26...
Nxe4 {[%clk 0:01:16.8]} 27. Nxe4 {[%clk 0:01:01.4]} 27... Rxe4 {[%clk
0:01:17.3]} 28. Bf3 {[%clk 0:01:01.9]} 28... Rxe3 {[%clk 0:01:17]} 29. fxe3
{[%clk 0:01:03.1]} 29... e4 {[%clk 0:01:16.9]} 30. Bg2 {[%clk 0:01:02.8]} 30...
Qg5 {[%clk 0:01:13]} 31. Rf4 {[%clk 0:01:02.7]} 31... f5 {[%clk 0:01:12.5]} 32.
h4 {[%clk 0:01:01.3]} 32... Qe7 {[%clk 0:01:12.2]} 33. Rf1 {[%clk 0:01:01.5]}
33... Qc5 {[%clk 0:01:11.2]} 34. Kf2 {[%clk 0:01:01.7]} 34... Qb4 {[%clk
0:01:10]} 35. Rd1 {[%clk 0:00:56.3]} 35... Qxb3 {[%clk 0:01:05.9]} 36. Rd7+
{[%clk 0:00:55.1]} 36... Kh6 {[%clk 0:01:06.7]} 37. Rxa7 {[%clk 0:00:55.7]}
37... Qxc4 {[%clk 0:01:07.5]} 38. Bf1 {[%clk 0:00:55.7]} 38... Qc3 {[%clk
0:01:01.8]} 39. Be2 {[%clk 0:00:56.4]} 39... Qe5 {[%clk 0:00:51.1]} 40. h5
{[%clk 0:00:56.4]} 40... Qh2+ {[%clk 0:00:50.9]} 41. Ke1 {[%clk 0:00:57]} 41...
g5 {[%clk 0:00:41.8]} 42. Rf7 {[%clk 0:00:55.6]} 42... Qe5 {[%clk 0:00:39.9]}
43. Rf8 {[%clk 0:00:46.8]} 43... g4 {[%clk 0:00:36.8]} 44. Kf2 {[%clk
0:00:44.9]} 44... Kxh5 {[%clk 0:00:34.2]} 45. Kg2 {[%clk 0:00:42]} 45... Qe6
{[%clk 0:00:27.5]} 46. Rh8 {[%clk 0:00:34.3]} 46... Kg6 {[%clk 0:00:27.9]} 47.
Rd8 {[%clk 0:00:30.6]} 47... h5 {[%clk 0:00:27.4]} 48. Rd1 {[%clk 0:00:24.5]}
48... h4 {[%clk 0:00:27.5]} 49. Rd8 {[%clk 0:00:24.4]} 49... h3+ {[%clk
0:00:27.1]} 50. Kg1 {[%clk 0:00:25.7]} 50... g3 {[%clk 0:00:21.7]} 51. Kh1
{[%clk 0:00:22.9]} 51... Qa2 {[%clk 0:00:19.2]} 52. Rd6+ {[%clk 0:00:18.3]}
52... Kg5 {[%clk 0:00:19]} 53. Rd8 {[%clk 0:00:07.2]} 53... Qxe2 {[%clk
0:00:15.6]} 54. Rg8+ {[%clk 0:00:08]} 54... Kf6 {[%clk 0:00:16.1]} 55. Rxg3
{[%clk 0:00:09.1]} 55... Qf1+ {[%clk 0:00:12.7]} 56. Kh2 {[%clk 0:00:09.8]}
56... Qg2+ {[%clk 0:00:11.9]} 57. Rxg2 {[%clk 0:00:10.8]} 57... hxg2 {[%clk
0:00:12.7]} 58. Kxg2 {[%clk 0:00:12.7]} 58... Ke5 {[%clk 0:00:13.4]} 59. Kf2
{[%clk 0:00:14.3]} 59... f4 {[%clk 0:00:14.2]} 60. exf4+ {[%clk 0:00:16.2]}
60... Kxf4 {[%clk 0:00:15.3]} 61. Ke2 {[%clk 0:00:18.1]} 61... e3 {[%clk
0:00:16.2]} 62. Kd3 {[%clk 0:00:19.5]} 62... Kf3 {[%clk 0:00:17.1]} 63. Kc4
{[%clk 0:00:21.3]} 63... e2 {[%clk 0:00:18.5]} 64. Kc5 {[%clk 0:00:23.2]} 64...
e1=Q {[%clk 0:00:19.4]} 65. Kxc6 {[%clk 0:00:25.1]} 65... Qd2 {[%clk 0:00:20.4]}
66. Kb5 {[%clk 0:00:26.2]} 66... Ke4 {[%clk 0:00:21.7]} 67. Kc5 {[%clk
0:00:28.1]} 67... Qd4+ {[%clk 0:00:21.5]} 0-1